[Event "Masters Tournament (MTO)"]
[Site "Biel, Switzerland"]
[Date "2026.07.14"]
[Round "2.1"]
[White "Ashwath, Kaushik"]
[Black "Ganguly, Surya Shekhar"]
[Result "0-1"]
[TimeControl "100+30+30sec/move"]
[WhiteTitle "-"]
[BlackTitle "-"]
[WhiteFideId "33387230"]
[BlackFideId "5002150"]
[WhiteElo "2278"]
[BlackElo "2578"]

1. d4 {[%clk 01:37:56]} {[%emt 00:03:02]} Nf6 {[%clk 01:40:42]} {[%emt
00:00:17]} 2. Nf3 {[%clk 01:38:17]} {[%emt 00:00:12]} d5 {[%clk 01:41:00]}
{[%emt 00:00:11]} 3. c4 {[%clk 01:38:38]} {[%emt 00:00:09]} e6 {[%clk
01:41:25]} {[%emt 00:00:05]} 4. g3 {[%clk 01:39:04]} {[%emt 00:00:05]} Bb4+
{[%clk 01:41:28]} {[%emt 00:00:24]} 5. Bd2 {[%clk 01:39:16]} {[%emt 00:00:20]}
Be7 {[%clk 01:41:49]} {[%emt 00:00:09]} 6. Bg2 {[%clk 01:39:12]} {[%emt
00:00:34]} O-O {[%clk 01:42:05]} {[%emt 00:00:12]} 7. O-O {[%clk 01:39:22]}
{[%emt 00:00:22]} Nbd7 {[%clk 01:42:26]} {[%emt 00:00:09]} 8. Qb3 {[%clk
01:37:58]} {[%emt 00:01:55]} a5 {[%clk 01:41:23]} {[%emt 00:01:33]} 9. Nc3
{[%clk 01:28:13]} {[%emt 00:10:17]} c6 {[%clk 01:41:25]} {[%emt 00:00:28]} 10.
a4 {[%clk 01:23:50]} {[%emt 00:04:53]} h6 {[%clk 01:32:02]} {[%emt 00:09:53]}
11. Bf4 {[%clk 01:19:39]} {[%emt 00:04:41]} Nh5 {[%clk 01:31:47]} {[%emt
00:00:45]} 12. Bd2 {[%clk 01:17:23]} {[%emt 00:02:44]} Nhf6 {[%clk 01:32:08]}
{[%emt 00:00:10]} 13. Bf4 {[%clk 01:13:26]} {[%emt 00:04:28]} Nh5 {[%clk
01:31:29]} {[%emt 00:01:09]} 14. Bd2 {[%clk 01:10:09]} {[%emt 00:03:46]} Bb4
{[%clk 01:31:20]} {[%emt 00:00:39]} 15. Nb1 {[%clk 01:03:14]} {[%emt 00:07:26]}
Bd6 {[%clk 01:31:13]} {[%emt 00:00:36]} 16. Nc3 {[%clk 00:59:28]} {[%emt
00:04:17]} Nhf6 {[%clk 01:30:34]} {[%emt 00:01:09]} 17. Bf4 {[%clk 00:55:38]}
{[%emt 00:04:20]} Bxf4 {[%clk 01:21:52]} {[%emt 00:09:11]} 18. gxf4 {[%clk
00:55:37]} {[%emt 00:00:30]} Ne8 {[%clk 01:21:23]} {[%emt 00:00:59]} 19. e3
{[%clk 00:46:21]} {[%emt 00:09:46]} Nd6 {[%clk 01:21:06]} {[%emt 00:00:47]} 20.
c5 {[%clk 00:44:30]} {[%emt 00:02:21]} Nf5 {[%clk 01:19:14]} {[%emt 00:02:22]}
21. Kh1 {[%clk 00:41:20]} {[%emt 00:03:40]} b6 {[%clk 01:16:37]} {[%emt
00:03:07]} 22. cxb6 {[%emt 00:01:10]} Rb8 {[%clk 01:16:49]} {[%emt 00:00:15]}
23. Qc2 {[%clk 00:34:28]} {[%emt 00:06:44]} Qxb6 {[%clk 01:16:27]} {[%emt
00:00:52]} 24. Rab1 {[%clk 00:33:17]} {[%emt 00:01:42]} Qb3 {[%clk 01:06:25]}
{[%emt 00:10:32]} 25. Qxb3 {[%clk 00:29:41]} {[%emt 00:04:07]} Rb7 {[%emt
00:00:05]} 26. Qb4 Rxb4 {[%clk 01:06:49]} 27. Nd2 {[%clk 00:29:13]} {[%emt
00:00:58]} Rb6 {[%clk 01:06:42]} {[%emt 00:00:35]} 28. Rfc1 {[%clk 00:26:48]}
{[%emt 00:02:57]} Ba6 {[%clk 01:05:37]} {[%emt 00:01:36]} 29. Bf1 {[%clk
00:17:22]} {[%emt 00:09:56]} Bxf1 {[%clk 01:05:45]} {[%emt 00:00:21]} 30. Nxf1
{[%clk 00:17:39]} {[%emt 00:00:13]} Rfb8 {[%clk 01:00:13]} {[%emt 00:06:01]} 31.
Rc2 {[%clk 00:16:26]} {[%emt 00:01:44]} f6 {[%clk 01:00:02]} {[%emt 00:00:40]}
32. Nd2 {[%clk 00:09:27]} {[%emt 00:07:29]} e5 {[%clk 00:59:59]} {[%emt
00:00:34]} 33. fxe5 {[%clk 00:08:54]} {[%emt 00:01:04]} fxe5 {[%clk 01:00:22]}
{[%emt 00:02:57]} 34. Nf3 {[%clk 00:06:42]} exd4 {[%clk 00:53:03]} {[%emt
00:07:40]} 35. Nxd4 {[%clk 00:03:34]} {[%emt 00:03:38]} Nxd4 {[%clk 00:53:14]}
{[%emt 00:00:18]} 36. exd4 {[%clk 00:03:59]} {[%emt 00:00:04]} Kf7 {[%clk
00:53:00]} {[%emt 00:00:43]} 37. Ne2 {[%clk 00:02:28]} {[%emt 00:02:02]} g5
{[%clk 00:46:30]} {[%emt 00:06:59]} 38. Ng3 {[%clk 00:01:54]} {[%emt 00:01:04]}
Nf8 {[%clk 00:43:42]} {[%emt 00:03:19]} 39. Rbc1 {[%clk 00:01:38]} {[%emt
00:00:47]} Ne6 {[%clk 00:43:25]} {[%emt 00:00:46]} 40. Rxc6 {[%clk 00:01:31]}
{[%emt 00:00:37]} Rxc6 {[%clk 00:43:18]} {[%emt 00:00:37]} 41. Rxc6 {[%clk
00:01:58]} {[%emt 00:00:03]} Rxb2 {[%clk 00:43:37]} {[%emt 00:00:12]} 42. Kg2
{[%clk 00:21:17]} {[%emt 00:11:09]} Rb3 {[%clk 01:03:09]} {[%emt 00:10:59]} 43.
Kf1 {[%clk 00:09:36]} {[%emt 00:12:11]} Nf4 {[%clk 01:00:12]} {[%emt 00:03:27]}
44. Ke1 {[%clk 00:09:34]} {[%emt 00:00:32]} h5 {[%clk 01:00:27]} {[%emt
00:00:16]} 45. Rc7+ {[%clk 00:05:24]} {[%emt 00:04:40]} Ke6 {[%clk 00:59:59]}
{[%emt 00:00:57]} 46. Rc6+ {[%clk 00:03:55]} {[%emt 00:02:00]} Kd7 {[%clk
01:00:23]} {[%emt 00:00:06]} 47. Rh6 {[%clk 00:03:04]} {[%emt 00:01:20]} h4
{[%clk 00:52:58]} {[%emt 00:07:56]} 48. Nh5 {[%clk 00:02:25]} {[%emt 00:01:08]}
Rb1+ {[%clk 00:52:59]} {[%emt 00:00:28]} 49. Kd2 {[%clk 00:02:49]} {[%emt
00:00:07]} Rb2+ {[%clk 00:53:26]} {[%emt 00:00:03]} 50. Ke1 {[%clk 00:00:59]}
{[%emt 00:02:19]} Nd3+ {[%clk 00:52:36]} {[%emt 00:01:20]} 51. Kf1 {[%clk
00:01:23]} {[%emt 00:00:06]} Rxf2+ {[%clk 00:51:50]} {[%emt 00:01:17]} 52. Kg1
{[%clk 00:01:49]} {[%emt 00:00:05]} Ke7 {[%clk 00:48:17]} {[%emt 00:04:01]} 53.
Rg6 {[%clk 00:00:43]} {[%emt 00:01:36]} Ra2 {[%clk 00:44:05]} {[%emt 00:04:43]}
54. Rxg5 {[%emt 00:00:43]} h3 {[%clk 00:44:27]} {[%emt 00:00:06]} 55. Kf1
{[%clk 00:00:33]} {[%emt 00:00:29]} Rxh2 {[%clk 00:43:59]} {[%emt 00:00:58]} 56.
Rxd5 {[%clk 00:00:32]} {[%emt 00:00:31]} Rh1+ {[%clk 00:40:38]} {[%emt
00:03:50]} 57. Ke2 {[%clk 00:00:59]} {[%emt 00:00:04]} h2 {[%clk 00:41:01]}
{[%emt 00:00:06]} 58. Ng3 {[%clk 00:00:43]} {[%emt 00:00:46]} Rg1 {[%clk
00:41:24]} {[%emt 00:00:07]} 59. Kd2 {[%clk 00:00:31]} {[%emt 00:00:42]} Rg2+
{[%clk 00:41:34]} {[%emt 00:00:19]} 0-1

[Event "Masters Tournament (MTO)"]
[Site "Biel, Switzerland"]
[Date "2026.07.14"]
[Round "2.2"]
[White "Acs, Peter"]
[Black "Cherniaev, Alexander"]
[Result "1-0"]
[TimeControl "100+30+30sec/move"]
[WhiteTitle "-"]
[BlackTitle "-"]
[WhiteFideId "708020"]
[BlackFideId "4117301"]
[WhiteElo "2561"]
[BlackElo "2275"]

1. e4 {[%clk 01:40:52]} {[%emt 00:00:07]} c5 {[%clk 01:40:56]} {[%emt
00:00:05]} 2. Nf3 {[%clk 01:41:07]} {[%emt 00:00:15]} Nc6 {[%clk 01:41:20]}
{[%emt 00:00:05]} 3. Bb5 {[%clk 01:41:06]} {[%emt 00:00:30]} g6 {[%clk
01:41:43]} {[%emt 00:00:07]} 4. Bxc6 {[%clk 01:40:54]} {[%emt 00:00:42]} dxc6
{[%clk 01:41:57]} {[%emt 00:00:16]} 5. O-O {[%clk 01:40:46]} {[%emt 00:00:38]}
Bg7 {[%clk 01:42:16]} {[%emt 00:00:12]} 6. d3 {[%clk 01:39:20]} {[%emt
00:01:57]} b6 {[%clk 01:42:39]} {[%emt 00:00:07]} 7. h3 {[%clk 01:36:56]}
{[%emt 00:02:54]} Nh6 {[%clk 01:42:43]} {[%emt 00:00:27]} 8. a4 {[%clk
01:31:04]} {[%emt 00:06:24]} O-O {[%clk 01:35:58]} {[%emt 00:07:14]} 9. a5
{[%clk 01:30:04]} {[%emt 00:01:30]} Ba6 {[%clk 01:36:23]} {[%emt 00:00:05]} 10.
Re1 {[%clk 01:25:55]} {[%emt 00:04:38]} f6 {[%clk 01:22:30]} {[%emt 00:14:24]}
11. Nc3 {[%clk 01:03:23]} {[%emt 00:23:01]} e5 {[%clk 01:13:36]} {[%emt
00:09:23]} 12. Be3 {[%clk 01:03:06]} {[%emt 00:00:46]} Nf7 {[%clk 01:13:47]}
{[%emt 00:00:20]} 13. Qb1 {[%clk 00:55:54]} {[%emt 00:07:42]} f5 {[%clk
01:12:49]} {[%emt 00:01:28]} 14. b4 {[%clk 00:54:48]} {[%emt 00:01:37]} f4
{[%clk 01:12:47]} {[%emt 00:00:33]} 15. Bd2 {[%clk 00:51:26]} {[%emt 00:03:52]}
b5 {[%clk 01:04:09]} {[%emt 00:09:08]} 16. bxc5 {[%clk 00:49:05]} {[%emt
00:02:52]} Bc8 {[%clk 01:03:22]} {[%emt 00:01:16]} 17. Kf1 {[%clk 00:37:22]}
{[%emt 00:12:13]} g5 {[%clk 00:59:10]} {[%emt 00:04:41]} 18. Ke2 {[%clk
00:37:15]} {[%emt 00:00:37]} g4 {[%clk 00:59:01]} {[%emt 00:00:39]} 19. hxg4
{[%clk 00:37:07]} {[%emt 00:00:38]} Bxg4 {[%clk 00:59:25]} {[%emt 00:00:06]} 20.
Rh1 {[%clk 00:29:49]} {[%emt 00:07:48]} Ng5 {[%clk 00:57:24]} {[%emt 00:02:32]}
21. Qa2+ {[%clk 00:29:39]} {[%emt 00:00:39]} Rf7 {[%clk 00:56:26]} {[%emt
00:01:29]} 22. Rh2 {[%clk 00:26:44]} {[%emt 00:03:25]} Ne6 {[%clk 00:47:41]}
{[%emt 00:09:14]} 23. Kf1 {[%clk 00:26:05]} {[%emt 00:01:09]} Bxf3 {[%clk
00:42:13]} {[%emt 00:05:58]} 24. Qxe6 {[%clk 00:23:46]} {[%emt 00:02:11]} 1-0

[Event "Masters Tournament (MTO)"]
[Site "Biel, Switzerland"]
[Date "2026.07.14"]
[Round "2.3"]
[White "Rappazzo, Johannes"]
[Black "Ghosh, Diptayan"]
[Result "0-1"]
[TimeControl "100+30+30sec/move"]
[WhiteTitle "-"]
[BlackTitle "-"]
[WhiteFideId "1340069"]
[BlackFideId "5045207"]
[WhiteElo "2268"]
[BlackElo "2554"]

1. e4 {[%clk 01:40:57]} {[%emt 00:00:01]} e6 {[%clk 01:36:31]} {[%emt
00:04:30]} 2. d4 {[%clk 01:41:22]} {[%emt 00:00:05]} d5 {[%clk 01:36:50]}
{[%emt 00:00:11]} 3. Nc3 {[%clk 01:41:47]} {[%emt 00:00:05]} Bb4 {[%clk
01:36:51]} {[%emt 00:00:29]} 4. e5 {[%clk 01:42:07]} {[%emt 00:00:10]} c5
{[%clk 01:37:02]} {[%emt 00:00:19]} 5. a3 {[%clk 01:42:31]} {[%emt 00:00:07]}
Ba5 {[%clk 01:37:15]} {[%emt 00:00:17]} 6. b4 {[%clk 01:40:40]} {[%emt
00:02:21]} cxd4 {[%clk 01:37:41]} {[%emt 00:00:05]} 7. Qg4 {[%clk 01:35:20]}
{[%emt 00:05:51]} Kf8 {[%clk 01:37:53]} {[%emt 00:00:18]} 8. Nb5 {[%clk
01:28:42]} {[%emt 00:07:08]} Bb6 {[%clk 01:38:03]} {[%emt 00:00:19]} 9. Nf3
{[%clk 01:22:34]} {[%emt 00:06:39]} Nc6 {[%clk 01:38:24]} {[%emt 00:00:09]} 10.
Bb2 {[%clk 01:10:33]} {[%emt 00:12:31]} f6 {[%clk 01:38:37]} {[%emt 00:00:17]}
11. Nbxd4 {[%clk 01:05:05]} {[%emt 00:05:58]} Nxe5 {[%clk 01:38:39]} {[%emt
00:00:28]} 12. Nxe5 {[%clk 01:03:27]} {[%emt 00:02:08]} fxe5 {[%clk 01:39:04]}
{[%emt 00:00:05]} 13. Nxe6+ {[%clk 01:03:01]} {[%emt 00:00:55]} Bxe6 {[%clk
01:39:30]} {[%emt 00:00:05]} 14. Qxe6 {[%clk 01:03:27]} {[%emt 00:00:04]} Qf6
{[%clk 01:39:56]} {[%emt 00:00:04]} 15. Qxf6+ {[%clk 01:02:19]} {[%emt
00:01:38]} gxf6 {[%clk 01:40:22]} {[%emt 00:00:05]} 16. f4 {[%clk 00:36:14]}
{[%emt 00:26:34]} e4 {[%clk 01:39:58]} {[%emt 00:00:54]} 17. c4 {[%clk
00:31:48]} {[%emt 00:04:57]} Rd8 {[%clk 01:31:06]} {[%emt 00:09:22]} 18. Rd1
{[%clk 00:25:10]} {[%emt 00:07:08]} Kf7 {[%clk 01:22:12]} {[%emt 00:09:25]} 19.
g4 {[%clk 00:18:14]} {[%emt 00:07:26]} Be3 {[%clk 00:37:21]} {[%emt 00:47:30]}
20. cxd5 {[%clk 00:11:04]} {[%emt 00:05:31]} Bxf4 {[%clk 00:37:32]} {[%emt
00:00:19]} 21. Bc4 {[%clk 00:10:14]} {[%emt 00:01:20]} h5 {[%clk 00:32:08]}
{[%emt 00:05:53]} 22. d6+ {[%clk 00:04:41]} {[%emt 00:06:04]} Kg6 {[%clk
00:30:03]} {[%emt 00:02:35]} 23. Rg1 {[%clk 00:03:02]} {[%emt 00:02:09]} h4
{[%clk 00:29:50]} {[%emt 00:00:43]} 24. g5 {[%clk 00:02:28]} {[%emt 00:01:03]}
Bxh2 {[%clk 00:29:36]} {[%emt 00:00:44]} 25. Rg4 {[%clk 00:01:46]} {[%emt
00:01:12]} Bg3+ {[%clk 00:20:26]} {[%emt 00:09:41]} 26. Kf1 {[%clk 00:01:24]}
{[%emt 00:00:52]} Kf5 {[%clk 00:20:21]} {[%emt 00:00:35]} 27. Be2 {[%clk
00:00:40]} {[%emt 00:01:14]} Rxd6 {[%clk 00:20:43]} {[%emt 00:00:08]} 28. Rc1
{[%clk 00:00:34]} {[%emt 00:00:36]} Rc6 {[%clk 00:16:04]} {[%emt 00:05:09]} 29.
Rd1 {[%clk 00:00:46]} {[%emt 00:00:18]} Rc2 {[%clk 00:14:01]} {[%emt 00:02:34]}
30. Ba1 {[%clk 00:00:41]} {[%emt 00:00:35]} Rxe2 {[%clk 00:13:40]} {[%emt
00:00:50]} 31. Kxe2 {[%clk 00:00:49]} {[%emt 00:00:22]} Kxg4 {[%clk 00:14:06]}
{[%emt 00:00:04]} 32. gxf6 {[%clk 00:01:15]} {[%emt 00:00:04]} Nxf6 {[%clk
00:13:21]} {[%emt 00:01:15]} 33. Bxf6 {[%clk 00:01:39]} {[%emt 00:00:06]} Rf8
{[%clk 00:13:42]} {[%emt 00:00:08]} 34. Bd4 {[%clk 00:01:45]} {[%emt 00:00:24]}
h3 {[%clk 00:12:07]} {[%emt 00:02:04]} 35. Bxa7 {[%clk 00:01:45]} {[%emt
00:00:30]} h2 {[%clk 00:12:26]} {[%emt 00:00:12]} 0-1

[Event "Masters Tournament (MTO)"]
[Site "Biel, Switzerland"]
[Date "2026.07.14"]
[Round "2.4"]
[White "Aronyak, Ghosh"]
[Black "Kukushkin, Ivan"]
[Result "1-0"]
[TimeControl "100+30+30sec/move"]
[WhiteTitle "-"]
[BlackTitle "-"]
[WhiteFideId "25072846"]
[BlackFideId "11634103"]
[WhiteElo "2549"]
[BlackElo "2257"]

1. Nf3 {[%clk 01:40:42]} {[%emt 00:00:17]} Nf6 {[%clk 01:36:09]} {[%emt
00:04:51]} 2. g3 {[%clk 01:40:09]} {[%emt 00:01:03]} b6 {[%clk 01:35:59]}
{[%emt 00:00:41]} 3. Bg2 {[%clk 01:38:56]} {[%emt 00:01:43]} Bb7 {[%clk
01:36:25]} {[%emt 00:00:04]} 4. c4 {[%clk 01:35:30]} {[%emt 00:03:57]} c5
{[%clk 01:36:17]} {[%emt 00:00:39]} 5. O-O {[%clk 01:34:50]} {[%emt 00:01:09]}
g6 {[%clk 01:35:06]} {[%emt 00:01:42]} 6. Nc3 {[%clk 01:20:11]} {[%emt
00:15:09]} Bg7 {[%clk 01:34:46]} {[%emt 00:00:50]} 7. d4 {[%clk 01:12:33]}
{[%emt 00:08:08]} cxd4 {[%clk 01:34:16]} {[%emt 00:01:00]} 8. Nxd4 {[%clk
01:12:44]} {[%emt 00:00:18]} Bxg2 {[%clk 01:31:57]} {[%emt 00:02:48]} 9. Kxg2
{[%clk 01:13:12]} {[%emt 00:00:03]} O-O {[%clk 01:31:33]} {[%emt 00:00:54]} 10.
Nc2 {[%clk 01:05:29]} {[%emt 00:08:13]} d6 {[%clk 01:28:12]} {[%emt 00:03:51]}
11. e4 {[%clk 01:02:56]} {[%emt 00:03:03]} Nbd7 {[%clk 01:26:24]} {[%emt
00:02:18]} 12. Qe2 {[%clk 01:03:11]} {[%emt 00:00:14]} Rc8 {[%clk 01:24:39]}
{[%emt 00:02:16]} 13. f3 {[%clk 00:57:51]} {[%emt 00:05:50]} Qc7 {[%clk
01:22:39]} {[%emt 00:02:30]} 14. Ne3 {[%clk 00:54:43]} {[%emt 00:03:38]} a6
{[%clk 01:17:00]} {[%emt 00:06:10]} 15. Ned5 {[%clk 00:44:29]} {[%emt
00:10:43]} Nxd5 {[%clk 01:16:11]} {[%emt 00:01:19]} 16. Nxd5 {[%clk 00:44:53]}
{[%emt 00:00:06]} Qxc4 {[%clk 01:12:26]} {[%emt 00:04:15]} 17. Nxe7+ {[%clk
00:45:18]} {[%emt 00:00:05]} Kh8 {[%clk 01:12:53]} {[%emt 00:00:04]} 18. Rf2
{[%clk 00:45:32]} {[%emt 00:00:15]} Qxe2 {[%clk 01:11:18]} {[%emt 00:02:04]} 19.
Rxe2 {[%clk 00:45:56]} {[%emt 00:00:07]} Rc4 {[%clk 01:10:07]} {[%emt
00:01:42]} 20. Be3 {[%clk 00:42:27]} {[%emt 00:03:58]} Re8 {[%clk 01:02:28]}
{[%emt 00:08:09]} 21. Nd5 {[%clk 00:42:26]} {[%emt 00:00:31]} Bd4 {[%clk
00:58:19]} {[%emt 00:04:39]} 22. Rd1 {[%clk 00:40:04]} {[%emt 00:02:52]} Bxe3
{[%clk 00:56:06]} {[%emt 00:02:43]} 23. Nxe3 {[%clk 00:40:30]} {[%emt
00:00:03]} Rc6 {[%clk 00:56:29]} {[%emt 00:00:07]} 24. Red2 {[%clk 00:40:27]}
{[%emt 00:00:33]} Re6 {[%clk 00:55:07]} {[%emt 00:01:51]} 25. Nc2 {[%clk
00:40:27]} {[%emt 00:00:30]} Re7 {[%clk 00:54:28]} {[%emt 00:01:09]} 26. Nb4
{[%clk 00:33:02]} {[%emt 00:07:55]} Rc4 {[%clk 00:54:01]} {[%emt 00:00:57]} 27.
Rd4 {[%clk 00:28:39]} {[%emt 00:04:53]} Rxd4 {[%clk 00:46:34]} {[%emt
00:07:57]} 28. Rxd4 {[%clk 00:29:01]} {[%emt 00:00:09]} f5 {[%clk 00:46:22]}
{[%emt 00:00:41]} 29. Rxd6 {[%clk 00:27:06]} {[%emt 00:02:25]} fxe4 {[%clk
00:46:18]} {[%emt 00:00:34]} 30. f4 {[%clk 00:23:41]} {[%emt 00:03:55]} e3
{[%clk 00:45:23]} {[%emt 00:01:25]} 31. Kf1 {[%clk 00:24:03]} {[%emt 00:00:08]}
e2+ {[%clk 00:44:39]} {[%emt 00:01:14]} 32. Ke1 {[%clk 00:24:31]} {[%emt
00:00:02]} Nc5 {[%clk 00:44:23]} {[%emt 00:03:11]} 33. Rd2 {[%clk 00:23:35]}
Re4 {[%clk 00:43:07]} {[%emt 00:00:48]} 34. a3 {[%clk 00:19:09]} {[%emt
00:04:56]} Re3 {[%clk 00:38:56]} {[%emt 00:04:41]} 35. Rxe2 {[%clk 00:17:02]}
{[%emt 00:02:37]} Rb3 {[%clk 00:39:09]} {[%emt 00:00:16]} 36. Kd1 {[%clk
00:16:39]} {[%emt 00:00:53]} a5 {[%clk 00:38:49]} {[%emt 00:00:51]} 37. Nd5
{[%clk 00:15:41]} {[%emt 00:01:27]} b5 {[%clk 00:31:45]} {[%emt 00:07:34]} 38.
Kc2 {[%clk 00:14:21]} {[%emt 00:01:50]} Rf3 {[%clk 00:24:09]} {[%emt 00:08:06]}
39. b4 {[%clk 00:12:46]} {[%emt 00:02:05]} axb4 {[%clk 00:22:20]} {[%emt
00:02:19]} 40. axb4 {[%clk 00:13:10]} {[%emt 00:00:07]} Na4 {[%clk 00:22:43]}
{[%emt 00:00:06]} 41. Re8+ {[%clk 00:08:29]} {[%emt 00:05:12]} Kg7 {[%clk
00:21:56]} {[%emt 00:01:16]} 42. Re7+ {[%clk 00:08:53]} {[%emt 00:00:06]} Kh6
{[%clk 00:22:14]} {[%emt 00:00:12]} 43. g4 {[%clk 00:07:39]} {[%emt 00:01:44]}
g5 {[%clk 00:22:11]} {[%emt 00:00:33]} 44. f5 {[%clk 00:07:54]} {[%emt
00:00:15]} Rf2+ {[%clk 00:22:21]} {[%emt 00:00:21]} 45. Kd3 {[%clk 00:06:41]}
{[%emt 00:01:42]} Nb2+ {[%clk 00:21:56]} {[%emt 00:00:56]} 46. Ke3 {[%clk
00:06:34]} {[%emt 00:00:37]} Nd1+ {[%clk 00:22:10]} {[%emt 00:00:16]} 47. Kd4
{[%clk 00:06:56]} {[%emt 00:00:07]} Rd2+ {[%clk 00:21:29]} {[%emt 00:01:12]} 48.
Kc5 {[%clk 00:06:47]} {[%emt 00:00:39]} Rc2+ {[%clk 00:21:32]} {[%emt
00:00:27]} 49. Kxb5 {[%clk 00:05:47]} {[%emt 00:01:30]} Rc8 {[%clk 00:20:18]}
{[%emt 00:01:44]} 50. Re2 {[%clk 00:03:55]} {[%emt 00:02:23]} Rd8 {[%clk
00:20:09]} {[%emt 00:00:39]} 51. Kc4 {[%clk 00:02:47]} {[%emt 00:01:36]} Rc8+
{[%clk 00:20:32]} {[%emt 00:00:08]} 52. Kd4 {[%clk 00:02:59]} {[%emt 00:00:18]}
Rc1 {[%clk 00:20:54]} {[%emt 00:00:08]} 53. Re1 {[%clk 00:02:30]} {[%emt
00:01:00]} Rb1 {[%clk 00:21:14]} {[%emt 00:00:11]} 54. b5 {[%clk 00:02:24]}
{[%emt 00:00:35]} Rxb5 {[%clk 00:20:38]} {[%emt 00:01:05]} 55. Rxd1 {[%clk
00:02:44]} {[%emt 00:00:10]} Rb2 {[%clk 00:21:06]} {[%emt 00:00:03]} 56. h3
{[%clk 00:03:04]} {[%emt 00:00:10]} Rb3 {[%clk 00:21:21]} {[%emt 00:00:15]} 57.
Rd3 {[%clk 00:03:29]} {[%emt 00:00:05]} Rb1 {[%clk 00:21:45]} {[%emt 00:00:06]}
58. Nc3 {[%clk 00:03:50]} {[%emt 00:00:09]} Rb7 {[%clk 00:21:56]} {[%emt
00:00:19]} 59. Ne4 {[%clk 00:04:05]} {[%emt 00:00:14]} Re7 {[%clk 00:21:47]}
{[%emt 00:00:40]} 60. Ke3 {[%clk 00:04:14]} {[%emt 00:00:21]} Rd7 {[%clk
00:22:10]} {[%emt 00:00:08]} 61. Rd6+ {[%clk 00:04:24]} {[%emt 00:00:19]} Kg7
{[%clk 00:22:33]} {[%emt 00:00:07]} 62. Rxd7+ {[%clk 00:04:49]} {[%emt
00:00:06]} Kh6 {[%clk 00:23:00]} {[%emt 00:00:02]} 63. h4 {[%clk 00:05:09]}
{[%emt 00:00:10]} 1-0

[Event "Masters Tournament (MTO)"]
[Site "Biel, Switzerland"]
[Date "2026.07.14"]
[Round "2.5"]
[White "Georgescu, Lena"]
[Black "Sasikiran, Krishnan"]
[Result "1-0"]
[TimeControl "100+30+30sec/move"]
[WhiteTitle "-"]
[BlackTitle "-"]
[WhiteFideId "1331973"]
[BlackFideId "5004985"]
[WhiteElo "2253"]
[BlackElo "2546"]

1. e4 {[%emt 01:16:45]} c5 {[%clk 01:40:11]} {[%emt 00:00:09]} 2. Nf3 {[%clk
01:41:21]} {[%emt 00:00:05]} g6 {[%clk 01:40:23]} {[%emt 00:00:18]} 3. c3
{[%clk 01:40:11]} {[%emt 00:01:40]} d5 {[%clk 01:39:53]} {[%emt 00:00:59]} 4.
e5 {[%clk 01:40:30]} {[%emt 00:00:11]} a6 {[%clk 01:39:16]} {[%emt 00:01:08]} 5.
h3 {[%clk 01:38:57]} {[%emt 00:02:03]} Nc6 {[%clk 01:37:59]} {[%emt 00:01:47]}
6. d4 {[%clk 01:38:17]} {[%emt 00:01:10]} Bg7 {[%clk 01:37:27]} {[%emt
00:01:01]} 7. Be2 {[%clk 01:37:06]} {[%emt 00:01:43]} f6 {[%clk 01:36:44]}
{[%emt 00:01:14]} 8. O-O {[%clk 01:28:52]} {[%emt 00:08:44]} fxe5 {[%clk
01:30:18]} {[%emt 00:06:56]} 9. dxe5 {[%clk 01:29:17]} {[%emt 00:00:05]} Nh6
{[%clk 01:23:24]} {[%emt 00:07:24]} 10. Re1 {[%clk 01:25:03]} {[%emt 00:04:44]}
Nf7 {[%clk 01:12:34]} {[%emt 00:11:19]} 11. Bf4 {[%clk 01:19:47]} {[%emt
00:05:46]} Nfxe5 {[%clk 01:02:15]} {[%emt 00:10:49]} 12. Bxe5 {[%clk 01:11:06]}
{[%emt 00:09:11]} Bxe5 {[%clk 01:00:16]} {[%emt 00:02:29]} 13. Nxe5 {[%clk
01:06:12]} {[%emt 00:05:24]} Nxe5 {[%clk 01:00:00]} {[%emt 00:00:45]} 14. Bxa6
{[%clk 01:06:05]} {[%emt 00:00:38]} Nc6 {[%clk 00:47:40]} {[%emt 00:12:50]} 15.
Bb5 {[%clk 01:04:04]} {[%emt 00:02:32]} O-O {[%clk 00:46:59]} {[%emt 00:01:10]}
16. Nd2 {[%clk 01:03:14]} {[%emt 00:01:19]} Na7 {[%clk 00:38:39]} {[%emt
00:08:50]} 17. Bf1 {[%clk 01:01:26]} {[%emt 00:02:19]} Nc6 {[%clk 00:36:21]}
{[%emt 00:02:48]} 18. Bb5 {[%clk 00:57:00]} {[%emt 00:04:56]} e5 {[%clk
00:32:42]} {[%emt 00:04:09]} 19. Bxc6 {[%clk 00:53:10]} {[%emt 00:04:20]} bxc6
{[%clk 00:32:56]} {[%emt 00:00:16]} 20. Rxe5 {[%clk 00:52:26]} {[%emt
00:01:14]} Qf6 {[%clk 00:29:10]} {[%emt 00:04:15]} 21. Qe1 {[%clk 00:44:57]}
{[%emt 00:07:59]} Bf5 {[%clk 00:24:59]} {[%emt 00:04:41]} 22. Re3 {[%clk
00:41:16]} {[%emt 00:04:12]} Rab8 {[%clk 00:22:19]} {[%emt 00:03:11]} 23. b3
{[%clk 00:39:52]} {[%emt 00:01:54]} d4 {[%clk 00:22:22]} {[%emt 00:00:27]} 24.
cxd4 {[%clk 00:39:16]} {[%emt 00:01:06]} cxd4 {[%clk 00:22:24]} {[%emt
00:00:28]} 25. Re7 {[%clk 00:37:53]} {[%emt 00:03:14]} Rf7 {[%clk 00:19:38]}
{[%emt 00:01:55]} 26. Qe5 {[%clk 00:30:44]} {[%emt 00:07:40]} Qxe7 {[%clk
00:18:42]} {[%emt 00:01:27]} 27. Qxb8+ {[%clk 00:31:10]} {[%emt 00:00:03]} Rf8
{[%clk 00:18:41]} {[%emt 00:00:31]} 28. Qg3 {[%clk 00:27:49]} {[%emt 00:03:52]}
Qe2 {[%clk 00:15:26]} {[%emt 00:03:45]} 29. Nc4 {[%clk 00:26:29]} {[%emt
00:01:50]} Bc2 {[%clk 00:13:14]} {[%emt 00:02:42]} 30. f3 {[%clk 00:17:50]}
{[%emt 00:09:09]} Bd3 {[%clk 00:12:31]} {[%emt 00:01:13]} 31. Re1 {[%clk
00:12:47]} {[%emt 00:05:34]} Qxa2 {[%clk 00:11:46]} {[%emt 00:01:14]} 32. Ne5
{[%clk 00:10:57]} {[%emt 00:02:21]} Bc2 {[%clk 00:09:06]} {[%emt 00:03:10]} 33.
Nxc6 {[%clk 00:09:12]} {[%emt 00:02:15]} d3 {[%clk 00:07:32]} {[%emt 00:02:05]}
34. Ne7+ {[%clk 00:06:31]} {[%emt 00:03:11]} Kg7 {[%clk 00:07:33]} {[%emt
00:00:29]} 35. Qe5+ {[%clk 00:06:39]} {[%emt 00:00:22]} Kh6 {[%clk 00:07:04]}
{[%emt 00:00:59]} 36. Re4 {[%clk 00:04:56]} {[%emt 00:02:14]} Qa7+ {[%clk
00:05:19]} {[%emt 00:02:15]} 37. Kf1 {[%clk 00:03:32]} {[%emt 00:01:53]} g5
{[%clk 00:04:19]} {[%emt 00:01:30]} 38. h4 {[%clk 00:03:37]} {[%emt 00:00:26]}
1-0